[Event "44th Chess Olympiad Open 2022"]
[Site "Chennai"]
[Date "2022.07.31"]
[Round "3.55"]
[White "Traore, Bakary"]
[Black "Arias Santana, Mauricio"]
[Result "0-1"]
[WhiteElo "2181"]
[BlackElo "2318"]
[Annotator "RC"]
[PlyCount "132"]
[EventDate "2022.??.??"]
[TimeControl "60"]

1. e4 {[%emt 0:00:05]} e5 {[%emt 0:00:09]} 2. Nf3 {[%emt 0:00:14]} Nc6 {
[%emt 0:00:04]} 3. Bb5 {[%emt 0:00:16]} a6 {[%emt 0:00:01]} 4. Ba4 {[%emt 0:00:
00]} Nf6 {[%emt 0:00:05]} 5. O-O {[%emt 0:00:32]} b5 {[%emt 0:00:02]} 6. Bb3 {
[%emt 0:00:16]} Bc5 {[%emt 0:00:02]} 7. c3 {[%emt 0:01:37]} d6 {[%emt 0:00:02]}
8. d4 {[%emt 0:00:34]} Bb6 {[%emt 0:00:02]} 9. dxe5 {[%emt 0:02:12]} Nxe5 {
[%emt 0:00:03]} 10. Nxe5 {[%emt 0:01:29]} dxe5 {[%emt 0:00:03]} 11. Qxd8+ {
[%emt 0:02:08]} Kxd8 {[%emt 0:00:31]} 12. Bg5 {[%emt 0:00:40]} Ke7 {[%emt 0:00:
00]} 13. Nd2 {[%emt 0:00:13]} h6 {[%emt 0:05:12]} 14. Bh4 {[%emt 0:01:20]} g5 {
[%emt 0:16:31]} 15. Bg3 {[%emt 0:00:13]} Nd7 {[%emt 0:00:02]} 16. Bd5 {[%emt 0:
00:00]} Rb8 {[%emt 0:00:08]} 17. Rfd1 {[%emt 0:00:34]} f6 {[%emt 0:11:42]} 18.
Kf1 {[%emt 0:09:17]} Nc5 {[%emt 0:02:25]} 19. f3 {[%emt 0:03:55]} Nd3 {[%emt 0:
00:00]} 20. Rab1 {[%emt 0:00:44]} c5 {[%emt 0:05:57]} 21. c4 {[%emt 0:00:41]}
Nb4 {[%emt 0:00:59]} 22. Bf2 {[%emt 0:02:02]} Nxd5 {[%emt 0:02:06]} 23. cxd5 {
[%emt 0:01:16]} Bd7 {[%emt 0:06:49]} 24. Nb3 {[%emt 0:03:41]} Kd6 {[%emt 0:00:
00]} 25. Rbc1 {[%emt 0:02:36]} Rhc8 {[%emt 0:02:27]} 26. Rc2 {[%emt 0:02:20]}
c4 {[%emt 0:13:55]} 27. Nd2 {[%emt 0:00:17]} Ba5 {[%emt 0:02:19]} 28. Rdc1 {
[%emt 0:04:58]} f5 {[%emt 0:00:51]} 29. Be1 {[%emt 0:01:11]} Bb6 {[%emt 0:00:
00]} 30. Bf2 {[%emt 0:00:32]} Bd4 {[%emt 0:00:31]} 31. Rd1 {[%emt 0:01:56]} Rf8
{[%emt 0:04:26]} 32. Bg3 {[%emt 0:03:32]} Rbc8 {[%emt 0:05:29]} 33. Ke2 {
[%emt 0:03:09]} h5 {[%emt 0:01:03]} 34. h3 {[%emt 0:08:27]} Rf7 {[%emt 0:04:22]
} 35. Nb1 {[%emt 0:09:53]} Bc5 {[%emt 0:00:38]} 36. Nd2 {[%emt 0:02:01]} Bd4 {
[%emt 0:01:56]} 37. Nb1 {[%emt 0:02:26]} Bb6 {[%emt 0:00:01]} 38. Nd2 {[%emt 0:
00:00]} Rg8 {[%emt 0:01:13]} 39. exf5 {[%emt 0:00:41]} Bxf5 {[%emt 0:01:30]}
40. Ne4+ {[%emt 0:00:03]} Bxe4 {[%emt 0:00:06]} 41. fxe4 {[%emt 0:31:00]} h4 {
[%emt 0:30:02]} 42. Be1 {[%emt 0:02:10]} Rf4 {[%emt 0:01:00]} 43. Bb4+ {
[%emt 0:00:18]} Bc5 {[%emt 0:01:03]} 44. Bxc5+ {[%emt 0:00:16]} Kxc5 {[%emt 0:
00:00]} 45. Ke3 {[%emt 0:00:54]} g4 {[%emt 0:00:01]} 46. d6 {[%emt 0:02:33]}
gxh3 {[%emt 0:07:59]} 47. Rd5+ {[%emt 0:00:24]} Kc6 {[%emt 0:00:01]} 48. Rxe5 {
[%emt 0:00:03]} h2 {[%emt 0:00:57]} 49. Rc1 {[%emt 0:00:16]} Rxg2 {[%emt 0:00:
00]} 50. d7 {[%emt 0:00:00]} Kxd7 {[%emt 0:00:00]} 51. Kxf4 {[%emt 0:00:00]}
Rg1 {[%emt 0:00:00]} 52. Rd5+ {[%emt 0:00:00]} Ke6 {[%emt 0:00:00]} 53. Rdd1 {
[%emt 0:00:00]} h1=Q {[%emt 0:00:00]} 54. Rxg1 {[%emt 0:00:00]} Qh2+ {[%emt 0:
00:00]} 55. Ke3 {[%emt 0:00:00]} Qxb2 {[%emt 0:00:00]} 56. Rg6+ {[%emt 0:00:00]
} Kf7 {[%emt 0:00:00]} 57. Rcg1 {[%emt 0:00:00]} h3 {[%emt 0:00:00]} 58. Rxa6 {
[%emt 0:00:00]} h2 {[%emt 0:00:00]} 59. Rf1+ {[%emt 0:00:00]} Ke7 {[%emt 0:00:
00]} 60. Ra7+ {[%emt 0:00:00]} Kd6 {[%emt 0:00:00]} 61. Rh7 {[%emt 0:00:00]}
Qa3+ {[%emt 0:00:00]} 62. Kf4 {[%emt 0:00:00]} Qxa2 {[%emt 0:00:00]} 63. Rd1+ {
[%emt 0:00:00]} Kc5 {[%emt 0:00:00]} 64. Rh5+ {[%emt 0:00:00]} Kb4 {[%emt 0:00:
00]} 65. Rh1 {[%emt 0:00:00]} Qf2+ {[%emt 0:00:00]} 66. Ke5 {[%emt 0:00:00]}
Qc5+ {[%emt 0:00:00]} 0-1

[Event "44th Chess Olympiad Open 2022"]
[Site "Chennai"]
[Date "2022.07.31"]
[Round "3.55"]
[White "Maiga, Baba Moulaye Abdall"]
[Black "Chaves Sanchez, Gabriel A"]
[Result "0-1"]
[WhiteElo "1822"]
[BlackElo "2125"]
[Annotator "NA RC"]
[PlyCount "98"]
[EventDate "2022.??.??"]
[TimeControl "60"]

1. e4 {[%emt 0:00:02]} c5 {[%emt 0:00:15]} 2. Nf3 {[%emt 0:00:25]} e6 {[%emt 0:
00:00]} 3. Nc3 {[%emt 0:00:29]} a6 {[%emt 0:00:10]} 4. a4 {[%emt 0:00:24]} Nc6
{[%emt 0:00:21]} 5. Bc4 {[%emt 0:00:15]} Nf6 {[%emt 0:01:05]} 6. d3 {[%emt 0:
00:00]} d5 {[%emt 0:03:54]} 7. exd5 {[%emt 0:00:39]} exd5 {[%emt 0:00:07]} 8.
Bb3 {[%emt 0:00:31]} Be7 {[%emt 0:01:39]} 9. h3 {[%emt 0:00:24]} O-O {[%emt 0:
00:00]} 10. O-O {[%emt 0:00:03]} h6 {[%emt 0:02:51]} 11. Bf4 {[%emt 0:00:39]}
Be6 {[%emt 0:02:38]} 12. Ne5 {[%emt 0:04:46]} Nd4 {[%emt 0:03:46]} 13. Ba2 {
[%emt 0:06:20]} Bd6 {[%emt 0:01:37]} 14. Ne2 {[%emt 0:01:34]} Nc6 {[%emt 0:00:
00]} 15. Nxc6 {[%emt 0:01:23]} bxc6 {[%emt 0:00:04]} 16. Bxd6 {[%emt 0:01:32]}
Qxd6 {[%emt 0:00:05]} 17. Qd2 {[%emt 0:01:29]} Rfe8 {[%emt 0:01:58]} 18. Rfe1 {
[%emt 0:04:29]} Bf5 {[%emt 0:03:33]} 19. Ng3 {[%emt 0:06:47]} Bd7 {[%emt 0:00:
00]} 20. Rxe8+ {[%emt 0:00:49]} Rxe8 {[%emt 0:00:59]} 21. Re1 {[%emt 0:01:07]}
Rxe1+ {[%emt 0:06:58]} 22. Qxe1 {[%emt 0:00:03]} Qf4 {[%emt 0:00:17]} 23. a5 {
[%emt 0:05:26]} Qd4 {[%emt 0:04:57]} 24. Qc3 {[%emt 0:10:12]} Qxc3 {[%emt 0:00:
00]} 25. bxc3 {[%emt 0:00:03]} Kf8 {[%emt 0:00:52]} 26. f4 {[%emt 0:01:27]} Ke7
{[%emt 0:00:51]} 27. Kf2 {[%emt 0:00:07]} Kd6 {[%emt 0:03:31]} 28. Kf3 {
[%emt 0:02:18]} g6 {[%emt 0:01:03]} 29. Bb3 {[%emt 0:00:49]} Be6 {[%emt 0:00:
00]} 30. Ke3 {[%emt 0:00:37]} c4 {[%emt 0:09:27]} 31. Ba4 {[%emt 0:04:10]} Nd7
{[%emt 0:01:02]} 32. dxc4 {[%emt 0:01:36]} dxc4 {[%emt 0:01:27]} 33. Ne4+ {
[%emt 0:02:37]} Kd5 {[%emt 0:00:15]} 34. g4 {[%emt 0:06:48]} f5 {[%emt 0:04:18]
} 35. gxf5 {[%emt 0:00:00]} Bxf5 {[%emt 0:01:00]} 36. Nf2 {[%emt 0:03:50]} Nc5
{[%emt 0:00:15]} 37. Bxc6+ {[%emt 0:01:59]} Kxc6 {[%emt 0:00:05]} 38. Kd4 {
[%emt 0:00:18]} Kb5 {[%emt 0:00:46]} 39. h4 {[%emt 0:00:46]} h5 {[%emt 0:01:19]
} 40. Nd1 {[%emt 0:00:32]} Bxc2 {[%emt 0:00:24]} 41. Ne3 {[%emt 0:30:33]} Bd3 {
[%emt 0:30:39]} 42. Nd5 {[%emt 0:03:38]} Nb3+ {[%emt 0:00:13]} 43. Ke5 {
[%emt 0:00:12]} Nxa5 {[%emt 0:01:14]} 44. Kf6 {[%emt 0:00:48]} Nc6 {[%emt 0:00:
00]} 45. Nc7+ {[%emt 0:01:34]} Kb6 {[%emt 0:00:07]} 46. Ne6 {[%emt 0:01:34]} a5
{[%emt 0:00:24]} 47. Nf8 {[%emt 0:00:03]} a4 {[%emt 0:00:11]} 48. Nxg6 {
[%emt 0:00:06]} Bxg6 {[%emt 0:00:08]} 49. Kxg6 {[%emt 0:00:17]} a3 {[%emt 0:00:
00]} 0-1

[Event "44th Chess Olympiad Open 2022"]
[Site "Chennai"]
[Date "2022.07.31"]
[Round "3.56"]
[White "Zaibi, Amir"]
[Black "Carpenter, Paul A"]
[Result "1-0"]
[WhiteElo "2398"]
[BlackElo "1938"]
[Annotator "RC"]
[PlyCount "33"]
[EventDate "2022.??.??"]
[TimeControl "60"]

1. e4 {[%emt 0:00:04]} d6 {[%emt 0:00:14]} 2. d4 {[%emt 0:00:08]} Nf6 {[%emt 0:
00:00]} 3. Nc3 {[%emt 0:00:06]} Nbd7 {[%emt 0:00:30]} 4. g4 {[%emt 0:00:19]} h6
{[%emt 0:05:40]} 5. h3 {[%emt 0:00:07]} e5 {[%emt 0:02:31]} 6. Bg2 {[%emt 0:00:
00]} c5 {[%emt 0:16:13]} 7. dxe5 {[%emt 0:02:25]} dxe5 {[%emt 0:00:23]} 8. f4 {
[%emt 0:02:21]} Qc7 {[%emt 0:08:37]} 9. Nf3 {[%emt 0:08:00]} a6 {[%emt 0:06:32]
} 10. Qe2 {[%emt 0:19:56]} b5 {[%emt 0:04:49]} 11. Nd5 {[%emt 0:02:15]} Qb8 {
[%emt 0:16:31]} 12. fxe5 {[%emt 0:03:36]} Nxe5 {[%emt 0:01:39]} 13. Nxe5 {
[%emt 0:00:05]} Qxe5 {[%emt 0:00:06]} 14. Bf4 {[%emt 0:00:04]} Qxb2 {[%emt 0:
00:00]} 15. Nc7+ {[%emt 0:02:17]} Ke7 {[%emt 0:00:46]} 16. Rd1 {[%emt 0:00:13]}
Qc3+ {[%emt 0:02:25]} 17. Kf2 {[%emt 0:02:29]} 1-0

[Event "44th Chess Olympiad Open 2022"]
[Site "Chennai"]
[Date "2022.07.31"]
[Round "3.56"]
[White "Bouzidi, Ahmed"]
[Black "Belzo, Krzysztof"]
[Result "1/2-1/2"]
[WhiteElo "2148"]
[BlackElo "2080"]
[Annotator "RC"]
[PlyCount "114"]
[EventDate "2022.??.??"]
[TimeControl "60"]

1. e4 {[%emt 0:00:08]} c5 {[%emt 0:00:07]} 2. c3 {[%emt 0:00:06]} g6 {[%emt 0:
00:00]} 3. d4 {[%emt 0:00:06]} cxd4 {[%emt 0:00:06]} 4. cxd4 {[%emt 0:00:05]}
d5 {[%emt 0:00:07]} 5. e5 {[%emt 0:00:06]} Nc6 {[%emt 0:00:40]} 6. h3 {[%emt 0:
00:00]} Bg7 {[%emt 0:00:34]} 7. Nc3 {[%emt 0:01:01]} Nh6 {[%emt 0:03:28]} 8.
Bb5 {[%emt 0:04:01]} O-O {[%emt 0:00:48]} 9. Nf3 {[%emt 0:00:34]} Nf5 {[%emt 0:
00:00]} 10. Bf4 {[%emt 0:11:11]} e6 {[%emt 0:07:21]} 11. Qd2 {[%emt 0:07:57]}
f6 {[%emt 0:09:32]} 12. Bxc6 {[%emt 0:08:59]} bxc6 {[%emt 0:00:13]} 13. O-O {
[%emt 0:00:12]} Qa5 {[%emt 0:13:42]} 14. exf6 {[%emt 0:23:04]} Bxf6 {[%emt 0:
00:00]} 15. Ne4 {[%emt 0:00:26]} Qxd2 {[%emt 0:03:00]} 16. Nxf6+ {[%emt 0:00:
00]} Rxf6 {[%emt 0:00:05]} 17. Bxd2 {[%emt 0:03:35]} Ba6 {[%emt 0:12:59]} 18.
Rfe1 {[%emt 0:02:06]} Re8 {[%emt 0:00:39]} 19. Rac1 {[%emt 0:06:05]} Bb7 {
[%emt 0:01:57]} 20. Bb4 {[%emt 0:08:51]} h6 {[%emt 0:09:41]} 21. Bc5 {[%emt 0:
00:00]} a6 {[%emt 0:00:19]} 22. Rc3 {[%emt 0:00:16]} g5 {[%emt 0:03:44]} 23.
Rb3 {[%emt 0:00:21]} Rf7 {[%emt 0:00:40]} 24. Ne5 {[%emt 0:01:08]} Rg7 {
[%emt 0:02:07]} 25. Ng4 {[%emt 0:01:35]} Rf7 {[%emt 0:04:20]} 26. Rxb7 {
[%emt 0:00:37]} Rxb7 {[%emt 0:00:07]} 27. Nf6+ {[%emt 0:00:07]} Kf7 {[%emt 0:
00:00]} 28. Nxe8 {[%emt 0:00:08]} Kxe8 {[%emt 0:00:19]} 29. Rxe6+ {[%emt 0:00:
00]} Kf7 {[%emt 0:00:03]} 30. Rxc6 {[%emt 0:03:46]} Rxb2 {[%emt 0:00:08]} 31.
Rxa6 {[%emt 0:00:20]} Rb1+ {[%emt 0:00:20]} 32. Kh2 {[%emt 0:00:08]} Rb2 {
[%emt 0:00:04]} 33. Kg1 {[%emt 0:06:16]} Rb1+ {[%emt 0:00:04]} 34. Kh2 {
[%emt 0:00:04]} Rb2 {[%emt 0:00:04]} 35. Ra7+ {[%emt 0:03:33]} Kg6 {[%emt 0:00:
00]} 36. g4 {[%emt 0:00:53]} Ne3 {[%emt 0:03:48]} 37. Kg3 {[%emt 0:03:35]} Nf1+
{[%emt 0:02:48]} 38. Kf3 {[%emt 0:01:26]} Nd2+ {[%emt 0:00:05]} 39. Ke3 {
[%emt 0:00:32]} Nc4+ {[%emt 0:01:28]} 40. Kf3 {[%emt 0:00:28]} Nd2+ {[%emt 0:
00:00]} 41. Kg3 {[%emt 0:30:38]} Ne4+ {[%emt 0:30:53]} 42. Kg2 {[%emt 0:00:00]}
Rxf2+ {[%emt 0:00:00]} 43. Kg1 {[%emt 0:00:00]} Rc2 {[%emt 0:00:00]} 44. Bb6 {
[%emt 0:00:00]} Nd2 {[%emt 0:00:00]} 45. a4 {[%emt 0:00:00]} Nf3+ {[%emt 0:00:
00]} 46. Kf1 {[%emt 0:00:00]} Rd2 {[%emt 0:00:00]} 47. Bc7 {[%emt 0:00:00]}
Nxd4 {[%emt 0:00:00]} 48. Be5 {[%emt 0:00:00]} h5 {[%emt 0:00:00]} 49. Ra6+ {
[%emt 0:00:00]} Kh7 {[%emt 0:00:00]} 50. gxh5 {[%emt 0:00:00]} Nf3 {[%emt 0:00:
00]} 51. Bg3 {[%emt 0:00:00]} Nh2+ {[%emt 0:00:00]} 52. Kg1 {[%emt 0:00:00]}
Nf3+ {[%emt 0:00:00]} 53. Kh1 {[%emt 0:00:31]} Ra2 {[%emt 0:00:00]} 54. a5 {
[%emt 0:01:12]} d4 {[%emt 0:00:00]} 55. Rd6 {[%emt 0:04:14]} Rxa5 {[%emt 0:00:
00]} 56. Kg2 {[%emt 0:00:06]} Ra3 {[%emt 0:04:06]} 57. Bf2 {[%emt 0:00:52]}
Nh4+ {[%emt 0:06:06]} 1/2-1/2

[Event "44th Chess Olympiad Open 2022"]
[Site "Chennai"]
[Date "2022.07.31"]
[Round "3.56"]
[White "Wojciechowski, Paul"]
[Black "Amdouni, Zoubaier"]
[Result "0-1"]
[WhiteElo "1944"]
[BlackElo "2224"]
[Annotator "RC"]
[PlyCount "80"]
[EventDate "2022.??.??"]
[TimeControl "60"]

1. e4 {[%emt 0:00:03]} c5 {[%emt 0:00:05]} 2. Nf3 {[%emt 0:00:05]} Nc6 {
[%emt 0:00:01]} 3. d4 {[%emt 0:00:06]} cxd4 {[%emt 0:00:02]} 4. Nxd4 {[%emt 0:
00:00]} g6 {[%emt 0:00:24]} 5. Nc3 {[%emt 0:02:51]} Bg7 {[%emt 0:00:23]} 6. Be3
{[%emt 0:00:06]} Nf6 {[%emt 0:00:04]} 7. Bc4 {[%emt 0:00:51]} O-O {[%emt 0:00:
00]} 8. Bb3 {[%emt 0:00:55]} Re8 {[%emt 0:00:39]} 9. f3 {[%emt 0:05:47]} e6 {
[%emt 0:00:11]} 10. Qd2 {[%emt 0:09:17]} d5 {[%emt 0:00:08]} 11. O-O-O {
[%emt 0:04:59]} Nxd4 {[%emt 0:00:16]} 12. Bxd4 {[%emt 0:00:47]} e5 {[%emt 0:00:
00]} 13. Bf2 {[%emt 0:04:06]} d4 {[%emt 0:03:03]} 14. Nd5 {[%emt 0:06:30]} Nxd5
{[%emt 0:02:22]} 15. Bxd5 {[%emt 0:00:07]} Be6 {[%emt 0:00:23]} 16. Bb3 {
[%emt 0:10:53]} Bxb3 {[%emt 0:05:21]} 17. cxb3 {[%emt 0:00:29]} a5 {[%emt 0:00:
00]} 18. Kb1 {[%emt 0:03:31]} a4 {[%emt 0:01:04]} 19. b4 {[%emt 0:05:18]} a3 {
[%emt 0:00:26]} 20. b3 {[%emt 0:00:08]} Qd6 {[%emt 0:10:28]} 21. Rc1 {[%emt 0:
00:00]} Rac8 {[%emt 0:10:53]} 22. Rxc8 {[%emt 0:05:25]} Rxc8 {[%emt 0:00:07]}
23. Rc1 {[%emt 0:00:05]} Rxc1+ {[%emt 0:00:17]} 24. Kxc1 {[%emt 0:00:14]} Qa6 {
[%emt 0:04:15]} 25. Kc2 {[%emt 0:04:53]} Qc6+ {[%emt 0:05:43]} 26. Kd1 {
[%emt 0:01:43]} Qb5 {[%emt 0:00:05]} 27. Kc2 {[%emt 0:00:18]} Bf8 {[%emt 0:00:
00]} 28. Be1 {[%emt 0:02:56]} Qf1 {[%emt 0:03:59]} 29. Bg3 {[%emt 0:15:25]} Bd6
{[%emt 0:13:25]} 30. Bh4 {[%emt 0:07:55]} Kg7 {[%emt 0:12:59]} 31. f4 {[%emt 0:
00:00]} Qa1 {[%emt 0:01:40]} 32. Kd3 {[%emt 0:00:45]} exf4 {[%emt 0:01:27]} 33.
Kc4 {[%emt 0:00:32]} Be5 {[%emt 0:00:42]} 34. Kd5 {[%emt 0:00:27]} Qc3 {
[%emt 0:03:42]} 35. Qxc3 {[%emt 0:00:38]} dxc3 {[%emt 0:00:05]} 36. Be1 {
[%emt 0:00:09]} c2 {[%emt 0:00:09]} 37. Bd2 {[%emt 0:00:05]} f6 {[%emt 0:00:48]
} 38. Ke6 {[%emt 0:01:10]} g5 {[%emt 0:00:17]} 39. Kd7 {[%emt 0:00:10]} f3 {
[%emt 0:00:08]} 40. gxf3 {[%emt 0:00:20]} Bf4 {[%emt 0:00:11]} 0-1

[Event "44th Chess Olympiad Open 2022"]
[Site "Chennai"]
[Date "2022.07.31"]
[Round "3.56"]
[White "Gurner, Jem"]
[Black "Meddeb, Anis"]
[Result "1-0"]
[WhiteElo "1800"]
[BlackElo "2121"]
[Annotator "NA"]
[PlyCount "95"]
[EventDate "2022.??.??"]
[TimeControl "60"]

1. e4 {[%emt 0:00:03]} c5 {[%emt 0:00:06]} 2. c3 {[%emt 0:00:04]} Nf6 {[%emt 0:
00:00]} 3. e5 {[%emt 0:00:04]} Nd5 {[%emt 0:00:06]} 4. d4 {[%emt 0:00:07]} cxd4
{[%emt 0:00:26]} 5. Nf3 {[%emt 0:00:33]} e6 {[%emt 0:00:28]} 6. cxd4 {[%emt 0:
00:00]} d6 {[%emt 0:01:06]} 7. Bc4 {[%emt 0:00:16]} Nc6 {[%emt 0:05:35]} 8. O-O
{[%emt 0:00:13]} dxe5 {[%emt 0:06:24]} 9. dxe5 {[%emt 0:01:44]} Be7 {[%emt 0:
00:00]} 10. Qe2 {[%emt 0:01:25]} Nb6 {[%emt 0:07:13]} 11. Rd1 {[%emt 0:06:28]}
Qc7 {[%emt 0:00:32]} 12. Bd3 {[%emt 0:00:51]} Nd7 {[%emt 0:10:20]} 13. Nc3 {
[%emt 0:34:37]} a6 {[%emt 0:01:19]} 14. Re1 {[%emt 0:05:49]} h6 {[%emt 0:04:09]
} 15. Bd2 {[%emt 0:03:11]} Nc5 {[%emt 0:01:45]} 16. Bb1 {[%emt 0:02:46]} b5 {
[%emt 0:00:57]} 17. Ne4 {[%emt 0:03:05]} Bb7 {[%emt 0:03:02]} 18. Nxc5 {
[%emt 0:03:26]} Bxc5 {[%emt 0:00:08]} 19. Be4 {[%emt 0:00:32]} Nd8 {[%emt 0:00:
00]} 20. Rac1 {[%emt 0:00:59]} Qe7 {[%emt 0:03:18]} 21. Ba5 {[%emt 0:04:17]}
Bd5 {[%emt 0:02:47]} 22. b4 {[%emt 0:06:33]} Bxb4 {[%emt 0:02:07]} 23. Rc7 {
[%emt 0:00:12]} Qf8 {[%emt 0:01:08]} 24. Bxb4 {[%emt 0:00:34]} Qxb4 {[%emt 0:
00:00]} 25. Bxd5 {[%emt 0:00:08]} exd5 {[%emt 0:00:23]} 26. e6 {[%emt 0:00:23]}
fxe6 {[%emt 0:06:35]} 27. Rxg7 {[%emt 0:00:57]} Qf4 {[%emt 0:07:19]} 28. Ne5 {
[%emt 0:02:09]} Qf5 {[%emt 0:03:16]} 29. Ng6 {[%emt 0:03:11]} Qf6 {[%emt 0:00:
00]} 30. Re7+ {[%emt 0:00:44]} Qxe7 {[%emt 0:00:03]} 31. Nxe7 {[%emt 0:00:08]}
Kxe7 {[%emt 0:00:04]} 32. Qe5 {[%emt 0:00:17]} Re8 {[%emt 0:04:24]} 33. Qxd5 {
[%emt 0:01:10]} Rc8 {[%emt 0:00:46]} 34. h3 {[%emt 0:02:13]} Rc1 {[%emt 0:00:
00]} 35. Qe4 {[%emt 0:00:22]} Rxe1+ {[%emt 0:00:33]} 36. Qxe1 {[%emt 0:00:06]}
Nc6 {[%emt 0:00:27]} 37. Qc1 {[%emt 0:00:57]} Rc8 {[%emt 0:00:37]} 38. Qxh6 {
[%emt 0:00:24]} b4 {[%emt 0:00:22]} 39. Qg7+ {[%emt 0:01:54]} Kd8 {[%emt 0:00:
00]} 40. h4 {[%emt 0:01:13]} Rc7 {[%emt 0:02:09]} 41. Qf6+ {[%emt 0:30:34]} Kd7
{[%emt 0:30:19]} 42. h5 {[%emt 0:00:30]} Kd6 {[%emt 0:01:03]} 43. Qf8+ {
[%emt 0:02:36]} Kd5 {[%emt 0:00:47]} 44. h6 {[%emt 0:01:00]} a5 {[%emt 0:00:41]
} 45. Qf3+ {[%emt 0:00:56]} Kd6 {[%emt 0:04:25]} 46. h7 {[%emt 0:00:54]} Rc8 {
[%emt 0:03:05]} 47. Qg3+ {[%emt 0:00:18]} Ne5 {[%emt 0:01:46]} 48. Qg8 {
[%emt 0:01:25]} 1-0

[Event "44th Chess Olympiad Open 2022"]
[Site "Chennai"]
[Date "2022.07.31"]
[Round "3.57"]
[White "Kigigha, Bomo"]
[Black "Cheikhna, Mohamed Lemine"]
[Result "1-0"]
[WhiteElo "2251"]
[BlackElo "1899"]
[Annotator "RC"]
[PlyCount "43"]
[EventDate "2022.??.??"]
[TimeControl "60"]

1. c4 {[%emt 0:00:05]} e5 {[%emt 0:00:21]} 2. g3 {[%emt 0:00:04]} c6 {[%emt 0:
00:00]} 3. Nf3 {[%emt 0:00:19]} e4 {[%emt 0:00:17]} 4. Nd4 {[%emt 0:00:04]} d5
{[%emt 0:01:16]} 5. cxd5 {[%emt 0:00:05]} cxd5 {[%emt 0:00:14]} 6. Nc3 {
[%emt 0:00:14]} Nf6 {[%emt 0:00:39]} 7. Bg2 {[%emt 0:00:08]} Nc6 {[%emt 0:00:
00]} 8. Nxc6 {[%emt 0:00:08]} bxc6 {[%emt 0:00:24]} 9. O-O {[%emt 0:00:28]} Bd6
{[%emt 0:04:49]} 10. d3 {[%emt 0:00:12]} exd3 {[%emt 0:00:41]} 11. Qxd3 {
[%emt 0:00:14]} O-O {[%emt 0:00:08]} 12. e4 {[%emt 0:00:26]} a5 {[%emt 0:04:50]
} 13. Rd1 {[%emt 0:04:57]} Bc5 {[%emt 0:07:09]} 14. exd5 {[%emt 0:07:02]} Bxf2+
{[%emt 0:01:23]} 15. Kxf2 {[%emt 0:00:11]} Ng4+ {[%emt 0:00:26]} 16. Kg1 {
[%emt 0:00:06]} Qb6+ {[%emt 0:07:04]} 17. Qd4 {[%emt 0:00:57]} Qxd4+ {[%emt 0:
00:00]} 18. Rxd4 {[%emt 0:00:04]} cxd5 {[%emt 0:00:26]} 19. Nxd5 {[%emt 0:00:
00]} Rb8 {[%emt 0:00:16]} 20. h3 {[%emt 0:00:12]} Nf6 {[%emt 0:00:16]} 21.
Nxf6+ {[%emt 0:00:21]} gxf6 {[%emt 0:00:10]} 22. Bh6 {[%emt 0:01:18]} 1-0

[Event "44th Chess Olympiad Open 2022"]
[Site "Chennai"]
[Date "2022.07.31"]
[Round "3.57"]
[White "Boidiya, Sidi"]
[Black "Adebayo, Adegboyega"]
[Result "0-1"]
[WhiteElo "1997"]
[BlackElo "2313"]
[Annotator "RC"]
[PlyCount "78"]
[EventDate "2022.??.??"]
[TimeControl "60"]

1. e4 {[%emt 0:00:05]} e6 {[%emt 0:00:07]} 2. d4 {[%emt 0:00:04]} d5 {[%emt 0:
00:00]} 3. Nd2 {[%emt 0:00:08]} dxe4 {[%emt 0:00:06]} 4. Nxe4 {[%emt 0:00:12]}
Nd7 {[%emt 0:00:05]} 5. Nf3 {[%emt 0:00:28]} Ngf6 {[%emt 0:00:08]} 6. Bd3 {
[%emt 0:00:31]} Nxe4 {[%emt 0:00:12]} 7. Bxe4 {[%emt 0:00:02]} Nf6 {[%emt 0:00:
00]} 8. Bd3 {[%emt 0:00:07]} c5 {[%emt 0:00:07]} 9. O-O {[%emt 0:02:04]} cxd4 {
[%emt 0:03:07]} 10. Nxd4 {[%emt 0:00:32]} Bc5 {[%emt 0:00:18]} 11. Nb3 {
[%emt 0:00:20]} Bd6 {[%emt 0:01:46]} 12. Bg5 {[%emt 0:02:43]} Qc7 {[%emt 0:00:
00]} 13. h3 {[%emt 0:03:20]} h6 {[%emt 0:03:50]} 14. Be3 {[%emt 0:03:41]} b6 {
[%emt 0:04:21]} 15. Bb5+ {[%emt 0:02:08]} Ke7 {[%emt 0:01:17]} 16. Qe2 {
[%emt 0:00:39]} a6 {[%emt 0:04:56]} 17. Bd3 {[%emt 0:01:49]} Rd8 {[%emt 0:00:
00]} 18. a4 {[%emt 0:01:15]} Nd5 {[%emt 0:09:27]} 19. a5 {[%emt 0:17:54]} Nxe3
{[%emt 0:02:28]} 20. fxe3 {[%emt 0:01:09]} Bb7 {[%emt 0:01:35]} 21. Qh5 {
[%emt 0:01:20]} Rf8 {[%emt 0:03:16]} 22. Qg4 {[%emt 0:02:34]} b5 {[%emt 0:00:
00]} 23. Nd4 {[%emt 0:02:27]} Bh2+ {[%emt 0:05:33]} 24. Kf2 {[%emt 0:05:31]}
Be5 {[%emt 0:00:24]} 25. Ke2 {[%emt 0:03:27]} Bf6 {[%emt 0:04:47]} 26. Rad1 {
[%emt 0:05:03]} Rad8 {[%emt 0:05:32]} 27. Be4 {[%emt 0:08:21]} Bxd4 {[%emt 0:
00:00]} 28. Bxb7 {[%emt 0:06:29]} f5 {[%emt 0:05:29]} 29. Qh4+ {[%emt 0:06:53]}
g5 {[%emt 0:00:54]} 30. Qxh6 {[%emt 0:00:39]} Rh8 {[%emt 0:02:15]} 31. Qxg5+ {
[%emt 0:00:08]} Bf6 {[%emt 0:00:27]} 32. Rxd8 {[%emt 0:00:42]} Bxg5 {[%emt 0:
00:00]} 33. Rxh8 {[%emt 0:00:36]} Kf6 {[%emt 0:04:15]} 34. h4 {[%emt 0:00:45]}
Kg7 {[%emt 0:00:53]} 35. Re8 {[%emt 0:06:44]} Kf7 {[%emt 0:03:54]} 36. Rh8 {
[%emt 0:02:37]} Kg7 {[%emt 0:01:50]} 37. Re8 {[%emt 0:00:07]} Bxh4 {[%emt 0:00:
00]} 38. Rxe6 {[%emt 0:06:30]} Qc4+ {[%emt 0:00:23]} 39. Kf3 {[%emt 0:02:25]}
Qxf1# {[%emt 0:00:11]} 0-1